[Event "Niedersachsen Jubilaeumsturnier Open A 2"]
[Site "Wolfsburg"]
[Date "2024.11.16"]
[Round "2.18"]
[White "Thuemler, Floris"]
[Black "Paashaus, Detlef"]
[Result "1/2-1/2"]
[ECO "C02"]
[WhiteElo "1872"]
[BlackElo "1934"]
[Annotator "ChessBase"]
[PlyCount "120"]
[EventDate "2024.11.15"]
[EventCountry "GER"]
[SourceTitle "playchess.com"]
[Source "ChessBase"]
[SourceQuality "1"]
[TimeControl "5400+30"]

1. e4 {[%emt 0:00:14]} e6 {[%emt 0:00:09]} 2. d4 {[%emt 0:00:07]} d5 {[%emt 0:00:04]} 3. e5 {[%emt 0:00:06]} c5 {[%emt 0:00:23]} 4. c3 {[%emt 0:00:13]} Nc6 {[%emt 0:00:13]} 5. Nf3 {[%emt 0:00:10]} Nge7 {[%emt 0:01:20]} 6. Na3 {[%emt 0:01:23]} a6 {[%emt 0:01:58]} 7. Be2 {[%emt 0:00:47]} Ng6 {[%emt 0:02:36]} 8. Nc2 {[%emt 0:02:06]} Be7 {[%emt 0:00:36]} 9. O-O {[%emt 0:01:14]} O-O {[%emt 0:00:15]} 10. g3 {[%emt 0:01:09]} f6 {[%emt 0:04:11]} 11. Bd3 {[%emt 0:04:16]} fxe5 {[%emt 0:07:53]} 12. Bxg6 {[%emt 0:02:28]} hxg6 {[%emt 0:00:24]} 13. Nxe5 {[%emt 0:01:21]} Nxe5 {[%emt 0:00:43]} 14. dxe5 {[%emt 0:00:10]} b5 {[%emt 0:02:28]} 15. Qg4 {[%emt 0:01:14]} Qe8 {[%emt 0:01:52]} 16. a4 {[%emt 0:01:14]} Bb7 {[%emt 0:01:29]} 17. Qxe6+ {[%emt 0:00:25]} Kh7 {[%emt 0:02:26]} 18. axb5 {[%emt 0:02:39]} axb5 {[%emt 0:01:38]} 19. Rxa8 {[%emt 0:01:30]} Bxa8 {[%emt 0:01:12]} 20. Ne3 {[%emt 0:02:55]} d4 {[%emt 0:02:26]} 21. cxd4 {[%emt 0:00:49]} cxd4 {[%emt 0:05:10]} 22. Nd5 {[%emt 0:02:29]} Bd8 {[%emt 0:01:14]} 23. Nf4 {[%emt 0:03:02]} g5 {[%emt 0:02:08]} 24. Qxe8 {[%emt 0:01:15]} Rxe8 {[%emt 0:00:07]} 25. Nd3 {[%emt 0:02:08]} Be4 {[%emt 0:05:08]} 26. Rd1 {[%emt 0:04:26]} g4 {[%emt 0:07:18]} 27. Bf4 {[%emt 0:02:13]} g5 {[%emt 0:02:46]} 28. Bc1 {[%emt 0:01:42]} Kg6 {[%emt 0:01:50]} 29. b4 {[%emt 0:02:24]} Bb6 {[%emt 0:00:50]} 30. Bb2 {[%emt 0:00:57]} Rc8 {[%emt 0:05:06]} 31. Nc5 {[%emt 0:02:42]} Bxc5 {[%emt 0:01:20]} 32. bxc5 {[%emt 0:01:10]} d3 {[%emt 0:01:38]} 33. Bd4 {[%emt 0:03:59]} Kf5 {[%emt 0:01:30]} 34. Rb1 {[%emt 0:04:36]} Rd8 {[%emt 0:03:27]} 35. Be3 {[%emt 0:01:23]} b4 {[%emt 0:06:57]} 36. Bd2 {[%emt 0:01:42]} Ra8 {[%emt 0:02:20]} 37. Kf1 {[%emt 0:05:41]} b3 {[%emt 0:01:58]} 38. Bc3 {[%emt 0:04:12]} Ra2 {[%emt 0:05:52]} 39. e6 {[%emt 0:06:35]} Kxe6 {[%emt 0:02:46]} 40. Rxb3 {[%emt 0:02:53]} d2 {[%emt 0:02:42]} 41. Rb6+ {[%emt 0:01:08]} Ke7 {[%emt 0:00:10]} 42. Rd6 {[%emt 0:00:00]} Ra3 {[%emt 0:00:46]} 43. Bxd2 {[%emt 0:00:00]} Bd3+ {[%emt 0:01:12]} 44. Rxd3 {[%emt 0:00:00]} Rxd3 {[%emt 0:00:07]} 45. Bxg5+ {[%emt 0:00:00]} Ke6 {[%emt 0:00:43]} 46. Ke2 {[%emt 0:00:00]} Rb3 {[%emt 0:01:38]} 47. Be3 {[%emt 0:00:00]} Kd5 {[%emt 0:03:29]} 48. Kf1 {[%emt 0:00:00]} Rb8 {[%emt 0:01:26]} 49. Kg2 {[%emt 0:00:00]} Rh8 {[%emt 0:00:21]} 50. Bg5 {[%emt 0:00:00]} Kxc5 {[%emt 0:00:50]} 51. Bh4 {[%emt 0:00:00]} Kd5 {[%emt 0:00:23]} 52. f3 {[%emt 0:00:00]} gxf3+ {[%emt 0:00:11]} 53. Kxf3 {[%emt 0:00:00]} Rxh4 {[%emt 0:00:51]} 54. gxh4 {[%emt 0:00:00]} Ke6 {[%emt 0:00:05]} 55. Kg4 {[%emt 0:00:05]} Kf7 {[%emt 0:00:06]} 56. Kh5 {[%emt 0:00:26]} Kg7 {[%emt 0:00:09]} 57. h3 {[%emt 0:00:08]} Kh7 {[%emt 0:00:07]} 58. Kg5 {[%emt 0:00:08]} Kg7 {[%emt 0:00:09]} 59. h5 {[%emt 0:00:05]} Kh7 {[%emt 0:00:06]} 60. h6 {[%emt 0:00:05]} Kh8 {[%emt 0:00:07]} 1/2-1/2

[Event "Niedersachsen Jubilaeumsturnier Open A 2"]
[Site "Wolfsburg"]
[Date "2024.11.16"]
[Round "2.19"]
[White "Heirich, Andreas"]
[Black "Vormann, Dirk"]
[Result "1/2-1/2"]
[ECO "D91"]
[WhiteElo "1933"]
[BlackElo "1869"]
[Annotator "ChessBase"]
[PlyCount "63"]
[EventDate "2024.11.15"]
[EventCountry "GER"]
[SourceTitle "playchess.com"]
[Source "ChessBase"]
[SourceQuality "1"]
[TimeControl "5400+30"]

1. d4 {[%emt 0:00:02]} d5 {[%emt 0:00:15]} 2. c4 {[%emt 0:00:06]} c6 {[%emt 0:01:06]} 3. Nc3 {[%emt 0:00:19]} Nf6 {[%emt 0:00:39]} 4. Nf3 {[%emt 0:00:23]} g6 {[%emt 0:00:52]} 5. Bg5 {[%emt 0:00:22]} Bg7 {[%emt 0:00:06]} 6. e3 {[%emt 0:02:34]} O-O {[%emt 0:02:23]} 7. Bd3 {[%emt 0:01:01]} Nbd7 {[%emt 0:03:53]} 8. O-O {[%emt 0:00:57]} dxc4 {[%emt 0:04:49]} 9. Bxc4 {[%emt 0:00:53]} Nb6 {[%emt 0:00:18]} 10. Bb3 {[%emt 0:00:38]} Bg4 {[%emt 0:02:07]} 11. h3 {[%emt 0:00:45]} Bxf3 {[%emt 0:00:37]} 12. Qxf3 {[%emt 0:00:08]} Nbd7 {[%emt 0:04:28]} 13. Rfd1 {[%emt 0:02:54]} Qa5 {[%emt 0:06:45]} 14. Bh4 {[%emt 0:02:53]} e6 {[%emt 0:00:26]} 15. Rac1 {[%emt 0:03:50]} Nd5 {[%emt 0:06:51]} 16. Ne4 {[%emt 0:10:10]} Qb4 {[%emt 0:10:21]} 17. Bg3 {[%emt 0:07:09]} Qb6 {[%emt 0:01:05]} 18. Bd6 {[%emt 0:04:58]} Rfe8 {[%emt 0:00:25]} 19. Ba3 {[%emt 0:08:35]} Bf8 {[%emt 0:05:38]} 20. Ng5 {[%emt 0:15:14]} f6 {[%emt 0:00:23]} 21. Bxf8 {[%emt 0:01:20]} Kxf8 {[%emt 0:06:15]} 22. e4 {[%emt 0:08:04]} Nc7 {[%emt 0:00:02]} 23. e5 {[%emt 0:02:28]} Kg7 {[%emt 0:00:19]} 24. exf6+ {[%emt 0:01:34]} Nxf6 {[%emt 0:00:10]} 25. Ne4 {[%emt 0:05:37]} Rf8 {[%emt 0:04:12]} 26. Nc5 {[%emt 0:01:37]} Rfe8 {[%emt 0:07:53]} 27. Ne4 {[%emt 0:06:55]} Rf8 {[%emt 0:00:55]} 28. Nc5 {[%emt 0:00:10]} Rfe8 {[%emt 0:00:08]} 29. g4 {[%emt 0:01:25]} Re7 {[%emt 0:17:59]} 30. g5 {[%emt 0:02:36]} Nfd5 {[%emt 0:02:40]} 31. Qe4 {[%emt 0:01:05]} Rf8 {[%emt 0:01:03]} 32. Qe5+ {[%emt 0:09:48]} 1/2-1/2

[Event "Niedersachsen Jubilaeumsturnier Open A 2"]
[Site "Wolfsburg"]
[Date "2024.11.16"]
[Round "2.20"]
[White "Retzlaff, Thomas"]
[Black "Bangert, Jonas"]
[Result "1-0"]
[ECO "B27"]
[WhiteElo "1866"]
[BlackElo "1914"]
[Annotator "NA"]
[PlyCount "105"]
[EventDate "2024.11.15"]
[EventCountry "GER"]
[SourceTitle "playchess.com"]
[Source "ChessBase"]
[SourceQuality "1"]
[TimeControl "5400+30"]

1. e4 {[%emt 0:06:44]} c5 {[%emt 0:00:02]} 2. Nf3 {[%emt 0:00:08]} g6 {[%emt 0:00:05]} 3. c3 {[%emt 0:00:04]} Bg7 {[%emt 0:00:50]} 4. d4 {[%emt 0:00:20]} cxd4 {[%emt 0:00:04]} 5. cxd4 {[%emt 0:00:05]} d5 {[%emt 0:00:04]} 6. e5 {[%emt 0:00:07]} Bg4 {[%emt 0:01:25]} 7. Bb5+ {[%emt 0:03:31]} Nd7 {[%emt 0:01:54]} 8. O-O {[%emt 0:00:19]} Nh6 {[%emt 0:00:44]} 9. h3 {[%emt 0:05:21]} Bxf3 {[%emt 0:00:13]} 10. Qxf3 {[%emt 0:00:07]} e6 {[%emt 0:01:04]} 11. Qa3 {[%emt 0:00:05]} Nf5 {[%emt 0:02:42]} 12. Be3 {[%emt 0:05:59]} h5 {[%emt 0:05:08]} 13. Nd2 {[%emt 0:00:33]} Bf8 {[%emt 0:01:15]} 14. Qa4 {[%emt 0:03:55]} a6 {[%emt 0:02:31]} 15. Bd3 {[%emt 0:08:11]} b5 {[%emt 0:19:54]} 16. Qd1 {[%emt 0:03:43]} Nb6 {[%emt 0:00:53]} 17. Bxf5 {[%emt 0:02:02]} gxf5 {[%emt 0:00:59]} 18. b3 {[%emt 0:01:27]} Ba3 {[%emt 0:03:26]} 19. Nf3 {[%emt 0:00:59]} Nd7 {[%emt 0:03:19]} 20. Bg5 {[%emt 0:02:08]} Qc7 {[%emt 0:00:49]} 21. Bc1 {[%emt 0:00:13]} Be7 {[%emt 0:02:58]} 22. Bd2 {[%emt 0:00:58]} Qb6 {[%emt 0:09:28]} 23. Rc1 {[%emt 0:00:30]} f6 {[%emt 0:02:10]} 24. Qe1 {[%emt 0:02:53]} a5 {[%emt 0:02:57]} 25. Qe3 {[%emt 0:00:40]} Kf7 {[%emt 0:06:32]} 26. Rc2 {[%emt 0:02:28]} fxe5 {[%emt 0:03:40]} 27. Nxe5+ {[%emt 0:00:24]} Nxe5 {[%emt 0:00:06]} 28. Qxe5 {[%emt 0:00:09]} Bd6 {[%emt 0:04:15]} 29. Qe3 {[%emt 0:01:55]} Ba3 {[%emt 0:03:54]} 30. Bc1 {[%emt 0:04:10]} Bd6 {[%emt 0:05:10]} 31. Re1 {[%emt 0:00:23]} Rae8 {[%emt 0:00:50]} 32. Bb2 {[%emt 0:01:09]} Bb8 {[%emt 0:01:27]} 33. Rec1 {[%emt 0:13:37]} f4 {[%emt 0:08:57]} 34. Qf3 {[%emt 0:04:49]} Ke7 {[%emt 0:01:13]} 35. Rc6 {[%emt 0:00:43]} Qb7 {[%emt 0:01:32]} 36. Qe2 {[%emt 0:00:45]} Kd7 {[%emt 0:00:54]} 37. R6c5 {[%emt 0:01:05]} b4 {[%emt 0:04:18]} 38. Rb5 {[%emt 0:01:58]} Qa7 {[%emt 0:01:04]} 39. Rbc5 {[%emt 0:02:19]} Qb6 {[%emt 0:00:25]} 40. Qc2 {[%emt 0:00:49]} Bd6 {[%emt 0:00:41]} 41. Qg6 {[%emt 0:05:18]} Re7 {[%emt 0:00:00]} 42. R5c2 {[%emt 0:00:00]} Qb8 {[%emt 0:00:00]} 43. Re1 {[%emt 0:00:00]} f3 {[%emt 0:00:00]} 44. Qd3 {[%emt 0:00:00]} fxg2 {[%emt 0:00:00]} 45. Kxg2 {[%emt 0:00:00]} Rg8+ {[%emt 0:00:00]} 46. Kf1 {[%emt 0:00:00]} Rf7 {[%emt 0:00:02]} 47. Qa6 {[%emt 0:00:00]} Qa8 {[%emt 0:02:02]} 48. Qb5+ {[%emt 0:00:00]} Ke7 {[%emt 0:00:18]} 49. Rc6 {[%emt 0:00:01]} Rgf8 {[%emt 0:01:05]} 50. Re2 {[%emt 0:02:55]} Qd8 {[%emt 0:01:29]} 51. Bc1 {[%emt 0:01:43]} Qd7 {[%emt 0:00:34]} 52. Bg5+ {[%emt 0:00:20]} Ke8 {[%emt 0:00:15]} 53. Rc8# {[%emt 0:00:45]} 1-0

[Event "Niedersachsen Jubilaeumsturnier Open A 2"]
[Site "Wolfsburg"]
[Date "2024.11.16"]
[Round "2.21"]
[White "Hammerl, Jonas"]
[Black "Wulff, Joerg"]
[Result "1-0"]
[ECO "C72"]
[WhiteElo "1914"]
[BlackElo "1865"]
[Annotator "ChessBase"]
[PlyCount "81"]
[EventDate "2024.11.15"]
[EventCountry "GER"]
[SourceTitle "playchess.com"]
[Source "ChessBase"]
[SourceQuality "1"]
[TimeControl "5400+30"]

1. e4 {[%emt 0:03:09]} e5 {[%emt 0:00:24]} 2. Nf3 {[%emt 0:00:22]} Nc6 {[%emt 0:00:01]} 3. Bb5 {[%emt 0:00:10]} a6 {[%emt 0:00:03]} 4. Ba4 {[%emt 0:00:06]} d6 {[%emt 0:00:04]} 5. O-O {[%emt 0:00:57]} Bg4 {[%emt 0:00:05]} 6. h3 {[%emt 0:02:43]} h5 {[%emt 0:00:02]} 7. Bxc6+ {[%emt 0:13:43]} bxc6 {[%emt 0:00:05]} 8. d4 {[%emt 0:00:14]} Qf6 {[%emt 0:03:47]} 9. dxe5 {[%emt 0:06:48]} dxe5 {[%emt 0:00:48]} 10. hxg4 {[%emt 0:04:36]} hxg4 {[%emt 0:00:05]} 11. Bg5 {[%emt 0:00:24]} Qg6 {[%emt 0:01:52]} 12. Nxe5 {[%emt 0:01:32]} Qe6 {[%emt 0:00:44]} 13. Nxg4 {[%emt 0:02:30]} f6 {[%emt 0:06:07]} 14. Bf4 {[%emt 0:02:37]} Rh4 {[%emt 0:03:26]} 15. f3 {[%emt 0:02:22]} Rb8 {[%emt 0:01:31]} 16. Bg3 {[%emt 0:11:52]} Rh8 {[%emt 0:00:31]} 17. Nc3 {[%emt 0:05:57]} Bc5+ {[%emt 0:00:16]} 18. Nf2 {[%emt 0:01:09]} Qf7 {[%emt 0:05:37]} 19. Re1 {[%emt 0:01:19]} Rd8 {[%emt 0:01:23]} 20. Qc1 {[%emt 0:01:32]} Ne7 {[%emt 0:06:26]} 21. Qf4 {[%emt 0:03:22]} Qh5 {[%emt 0:01:48]} 22. Kf1 {[%emt 0:01:47]} Bd6 {[%emt 0:04:09]} 23. e5 {[%emt 0:01:35]} Bxe5 {[%emt 0:12:17]} 24. Rxe5 {[%emt 0:00:17]} fxe5 {[%emt 0:00:05]} 25. Qxe5 {[%emt 0:00:12]} Qxe5 {[%emt 0:01:45]} 26. Bxe5 {[%emt 0:00:08]} Nf5 {[%emt 0:03:50]} 27. Re1 {[%emt 0:06:57]} Kf7 {[%emt 0:01:02]} 28. Nce4 {[%emt 0:00:52]} Nd6 {[%emt 0:03:25]} 29. Ng5+ {[%emt 0:03:48]} Kg6 {[%emt 0:00:17]} 30. Ne6 {[%emt 0:01:06]} Rd7 {[%emt 0:00:37]} 31. Bxg7 {[%emt 0:01:15]} Rxg7 {[%emt 0:00:49]} 32. Nxg7 {[%emt 0:00:10]} Kxg7 {[%emt 0:00:03]} 33. Re7+ {[%emt 0:00:15]} Kg6 {[%emt 0:00:19]} 34. Rxc7 {[%emt 0:00:17]} Kf5 {[%emt 0:00:19]} 35. Rxc6 {[%emt 0:00:59]} Nb5 {[%emt 0:00:07]} 36. Rxa6 {[%emt 0:00:51]} Nd4 {[%emt 0:00:03]} 37. c3 {[%emt 0:01:58]} Nc2 {[%emt 0:00:26]} 38. Ra5+ {[%emt 0:01:15]} Kf4 {[%emt 0:00:18]} 39. Ke2 {[%emt 0:01:01]} Re8+ {[%emt 0:00:40]} 40. Ne4 {[%emt 0:00:36]} Rg8 {[%emt 0:00:28]} 41. g3+ {[%emt 0:00:17]} 1-0

[Event "Niedersachsen Jubilaeumsturnier Open A 2"]
[Site "Wolfsburg"]
[Date "2024.11.16"]
[Round "2.22"]
[White "Beckmann, Jonathan"]
[Black "Wusterack, Paul"]
[Result "0-1"]
[ECO "E93"]
[WhiteElo "1860"]
[BlackElo "1891"]
[Annotator "NA"]
[PlyCount "120"]
[EventDate "2024.11.15"]
[EventCountry "GER"]
[SourceTitle "playchess.com"]
[Source "ChessBase"]
[SourceQuality "1"]
[TimeControl "5400+30"]

1. d4 {[%emt 0:00:02]} Nf6 {[%emt 0:04:31]} 2. c4 {[%emt 0:00:05]} g6 {[%emt 0:00:41]} 3. Nc3 {[%emt 0:00:06]} Bg7 {[%emt 0:04:00]} 4. e4 {[%emt 0:00:04]} d6 {[%emt 0:00:03]} 5. Nf3 {[%emt 0:00:04]} O-O {[%emt 0:00:10]} 6. h3 {[%emt 0:00:02]} e5 {[%emt 0:01:03]} 7. d5 {[%emt 0:00:08]} Na6 {[%emt 0:04:10]} 8. Be3 {[%emt 0:00:14]} b6 {[%emt 0:16:10]} 9. g4 {[%emt 0:06:18]} Nc5 {[%emt 0:02:25]} 10. Qc2 {[%emt 0:00:40]} a5 {[%emt 0:02:04]} 11. Be2 {[%emt 0:01:11]} Bd7 {[%emt 0:02:14]} 12. Nd2 {[%emt 0:03:50]} Ne8 {[%emt 0:05:42]} 13. g5 {[%emt 0:04:00]} f5 {[%emt 0:02:11]} 14. O-O-O {[%emt 0:03:39]} f4 {[%emt 0:08:59]} 15. Bxc5 {[%emt 0:00:15]} dxc5 {[%emt 0:00:17]} 16. h4 {[%emt 0:03:10]} Nd6 {[%emt 0:02:24]} 17. Rdg1 {[%emt 0:07:02]} Kf7 {[%emt 0:05:44]} 18. Bg4 {[%emt 0:17:30]} Bxg4 {[%emt 0:02:05]} 19. Rxg4 {[%emt 0:00:21]} Qd7 {[%emt 0:00:42]} 20. Rgg1 {[%emt 0:01:07]} Rh8 {[%emt 0:05:36]} 21. b3 {[%emt 0:08:13]} h5 {[%emt 0:06:42]} 22. gxh6 {[%emt 0:02:44]} Rxh6 {[%emt 0:00:20]} 23. Nf3 {[%emt 0:00:24]} Bf6 {[%emt 0:00:15]} 24. Ne2 {[%emt 0:04:41]} Rh5 {[%emt 0:03:46]} 25. Nxf4 {[%emt 0:11:16]} exf4 {[%emt 0:00:10]} 26. e5 {[%emt 0:00:06]} Qf5 {[%emt 0:00:14]} 27. exf6 {[%emt 0:02:47]} Qxc2+ {[%emt 0:02:16]} 28. Kxc2 {[%emt 0:00:01]} Kxf6 {[%emt 0:04:53]} 29. Ng5 {[%emt 0:05:35]} Nf5 {[%emt 0:05:19]} 30. Ne6 {[%emt 0:06:24]} Rxh4 {[%emt 0:01:03]} 31. Rxh4 {[%emt 0:01:33]} Nxh4 {[%emt 0:00:02]} 32. Nxc7 {[%emt 0:00:32]} Rg8 {[%emt 0:01:16]} 33. Ne6 {[%emt 0:01:13]} Nf3 {[%emt 0:01:21]} 34. Rh1 {[%emt 0:04:38]} g5 {[%emt 0:03:10]} 35. Kd3 {[%emt 0:02:21]} Kf5 {[%emt 0:02:23]} 36. Rh7 {[%emt 0:02:14]} Ne5+ {[%emt 0:00:11]} 37. Ke2 {[%emt 0:00:21]} g4 {[%emt 0:01:15]} 38. Rh5+ {[%emt 0:03:23]} Ke4 {[%emt 0:00:07]} 39. Ng5+ {[%emt 0:00:08]} Kd4 {[%emt 0:01:18]} 40. Ne6+ {[%emt 0:00:24]} Ke4 {[%emt 0:00:13]} 41. Rg5 {[%emt 0:00:00]} f3+ {[%emt 0:00:00]} 42. Kf1 {[%emt 0:00:00]} Rxg5 {[%emt 0:00:00]} 43. Nxg5+ {[%emt 0:00:00]} Kd3 {[%emt 0:00:00]} 44. d6 {[%emt 0:00:00]} Kc2 {[%emt 0:00:00]} 45. Ne4 {[%emt 0:00:06]} Nd7 {[%emt 0:00:00]} 46. Kg1 {[%emt 0:03:17]} Kb2 {[%emt 0:01:29]} 47. Kh2 {[%emt 0:00:08]} Kxa2 {[%emt 0:00:13]} 48. Nd2 {[%emt 0:00:03]} Kb2 {[%emt 0:00:09]} 49. Kg3 {[%emt 0:00:03]} Kc3 {[%emt 0:00:12]} 50. Ne4+ {[%emt 0:00:58]} Kxb3 {[%emt 0:00:10]} 51. Kxg4 {[%emt 0:00:03]} Kxc4 {[%emt 0:00:21]} 52. Kxf3 {[%emt 0:00:03]} a4 {[%emt 0:00:56]} 53. Nd2+ {[%emt 0:00:15]} Kd5 {[%emt 0:00:17]} 54. Ke3 {[%emt 0:00:09]} Kxd6 {[%emt 0:00:22]} 55. Kd3 {[%emt 0:00:07]} Kd5 {[%emt 0:01:02]} 56. Kc3 {[%emt 0:00:07]} b5 {[%emt 0:00:22]} 57. f4 {[%emt 0:00:17]} Nf6 {[%emt 0:00:34]} 58. Nb1 {[%emt 0:01:04]} Ke4 {[%emt 0:00:48]} 59. Kb2 {[%emt 0:00:15]} b4 {[%emt 0:01:02]} 60. Nd2+ {[%emt 0:00:22]} Kxf4 {[%emt 0:05:08]} 0-1

[Event "Niedersachsen Jubilaeumsturnier Open A 2"]
[Site "Wolfsburg"]
[Date "2024.11.16"]
[Round "2.24"]
[White "Prahl, Niklas"]
[Black "Alpers, Arne"]
[Result "1/2-1/2"]
[ECO "B21"]
[WhiteElo "1848"]
[BlackElo "1885"]
[Annotator "NA"]
[PlyCount "113"]
[EventDate "2024.11.15"]
[EventCountry "GER"]
[SourceTitle "playchess.com"]
[Source "ChessBase"]
[SourceQuality "1"]
[TimeControl "5400+30"]

1. e4 {[%emt 0:00:03]} c5 {[%emt 0:00:06]} 2. d4 {[%emt 0:00:07]} cxd4 {[%emt 0:00:46]} 3. c3 {[%emt 0:00:10]} dxc3 {[%emt 0:00:24]} 4. Nxc3 {[%emt 0:00:07]} Nc6 {[%emt 0:00:05]} 5. Nf3 {[%emt 0:00:23]} e6 {[%emt 0:00:06]} 6. Bc4 {[%emt 0:00:20]} Bb4 {[%emt 0:00:06]} 7. O-O {[%emt 0:00:26]} Nge7 {[%emt 0:00:04]} 8. Nb5 {[%emt 0:00:37]} a6 {[%emt 0:08:45]} 9. Nd6+ {[%emt 0:02:34]} Bxd6 {[%emt 0:00:31]} 10. Qxd6 {[%emt 0:00:03]} Ng6 {[%emt 0:02:42]} 11. Rd1 {[%emt 0:09:45]} Qe7 {[%emt 0:00:41]} 12. Qc7 {[%emt 0:03:21]} O-O {[%emt 0:01:02]} 13. Bg5 {[%emt 0:06:56]} f6 {[%emt 0:00:46]} 14. Be3 {[%emt 0:01:36]} d5 {[%emt 0:14:19]} 15. Qxe7 {[%emt 0:02:45]} Ngxe7 {[%emt 0:02:05]} 16. exd5 {[%emt 0:04:36]} Na5 {[%emt 0:18:41]} 17. Bc5 {[%emt 0:22:51]} Re8 {[%emt 0:14:00]} 18. Bxe7 {[%emt 0:04:26]} Rxe7 {[%emt 0:03:44]} 19. d6 {[%emt 0:05:59]} Re8 {[%emt 0:03:07]} 20. d7 {[%emt 0:06:57]} Bxd7 {[%emt 0:00:12]} 21. Rxd7 {[%emt 0:00:23]} Nxc4 {[%emt 0:00:04]} 22. Rxb7 {[%emt 0:00:49]} Red8 {[%emt 0:10:03]} 23. g3 {[%emt 0:05:27]} e5 {[%emt 0:02:35]} 24. Rc1 {[%emt 0:03:02]} Rac8 {[%emt 0:00:53]} 25. Nh4 {[%emt 0:03:36]} Na5 {[%emt 0:09:32]} 26. Rxc8 {[%emt 0:00:34]} Rxc8 {[%emt 0:00:01]} 27. Ra7 {[%emt 0:00:55]} Rc1+ {[%emt 0:03:01]} 28. Kg2 {[%emt 0:00:09]} Rc2 {[%emt 0:00:12]} 29. Rxa6 {[%emt 0:03:12]} Nc4 {[%emt 0:00:04]} 30. b4 {[%emt 0:07:46]} Ne3+ {[%emt 0:00:09]} 31. Kf3 {[%emt 0:00:11]} Nd1 {[%emt 0:00:18]} 32. Ra3 {[%emt 0:01:59]} Rxf2+ {[%emt 0:02:51]} 33. Ke4 {[%emt 0:01:10]} Rxh2 {[%emt 0:01:43]} 34. Kd3 {[%emt 0:02:00]} Rb2 {[%emt 0:02:03]} 35. Kc4 {[%emt 0:01:22]} e4 {[%emt 0:00:03]} 36. b5 {[%emt 0:00:43]} e3 {[%emt 0:00:12]} 37. Rb3 {[%emt 0:00:51]} e2 {[%emt 0:01:58]} 38. Nf3 {[%emt 0:00:24]} Rxa2 {[%emt 0:00:51]} 39. b6 {[%emt 0:00:15]} Ra8 {[%emt 0:00:05]} 40. b7 {[%emt 0:00:33]} Rb8 {[%emt 0:00:03]} 41. Kd3 {[%emt 0:00:00]} Nf2+ {[%emt 0:00:00]} 42. Ke3 {[%emt 0:00:00]} Ng4+ {[%emt 0:00:00]} 43. Kxe2 {[%emt 0:00:00]} Kf7 {[%emt 0:00:00]} 44. Nd4 {[%emt 0:00:00]} Ne5 {[%emt 0:00:00]} 45. Rb5 {[%emt 0:00:00]} Ke8 {[%emt 0:00:00]} 46. Ne6 {[%emt 0:00:00]} Kd7 {[%emt 0:00:00]} 47. Nxg7 {[%emt 0:00:00]} Kc6 {[%emt 0:00:00]} 48. Rb4 {[%emt 0:00:00]} Rxb7 {[%emt 0:00:00]} 49. Rxb7 {[%emt 0:00:00]} Kxb7 {[%emt 0:00:00]} 50. Ke3 {[%emt 0:00:00]} Kc6 {[%emt 0:00:00]} 51. Ke4 {[%emt 0:00:23]} Kd6 {[%emt 0:00:00]} 52. Kf5 {[%emt 0:00:26]} Ke7 {[%emt 0:00:00]} 53. Nh5 {[%emt 0:00:50]} Nd7 {[%emt 0:00:00]} 54. g4 {[%emt 0:01:04]} h6 {[%emt 0:00:00]} 55. Kg6 {[%emt 0:00:28]} Ne5+ {[%emt 0:00:02]} 56. Kxh6 {[%emt 0:00:08]} Nxg4+ {[%emt 0:00:05]} 57. Kg6 {[%emt 0:00:13]} 1/2-1/2

[Event "Niedersachsen Jubilaeumsturnier Open A 2"]
[Site "Wolfsburg"]
[Date "2024.11.16"]
[Round "2.25"]
[White "Kozik, Andreas"]
[Black "Shevchenko, Igor"]
[Result "1-0"]
[ECO "D02"]
[WhiteElo "1884"]
[BlackElo "2105"]
[Annotator "ChessBase"]
[PlyCount "59"]
[EventDate "2024.11.15"]
[EventCountry "GER"]
[SourceTitle "playchess.com"]
[Source "ChessBase"]
[SourceQuality "1"]
[TimeControl "5400+30"]

1. d4 {[%emt 0:00:02]} Nf6 {[%emt 0:00:04]} 2. Nf3 {[%emt 0:00:06]} e6 {[%emt 0:01:18]} 3. Bf4 {[%emt 0:00:22]} d5 {[%emt 0:00:22]} 4. e3 {[%emt 0:00:24]} Nbd7 {[%emt 0:01:14]} 5. Nbd2 {[%emt 0:00:35]} Be7 {[%emt 0:00:54]} 6. Ne5 {[%emt 0:01:03]} Nxe5 {[%emt 1:29:38]} 7. dxe5 {[%emt 0:00:19]} Nd7 {[%emt 0:00:00]} 8. h4 {[%emt 0:15:42]} c6 {[%emt 0:00:00]} 9. Qg4 {[%emt 0:19:25]} g6 {[%emt 0:00:00]} 10. O-O-O {[%emt 0:03:34]} f5 {[%emt 0:00:00]} 11. Qg3 {[%emt 0:02:01]} Nc5 {[%emt 0:00:00]} 12. Bg5 {[%emt 0:06:02]} b5 {[%emt 0:00:00]} 13. f4 {[%emt 0:47:25]} Qa5 {[%emt 0:00:00]} 14. Bxe7 {[%emt 0:00:00]} Kxe7 {[%emt 0:00:00]} 15. Kb1 {[%emt 0:00:00]} Bb7 {[%emt 0:00:00]} 16. h5 {[%emt 0:00:00]} Rag8 {[%emt 0:00:00]} 17. hxg6 {[%emt 0:00:00]} Rxg6 {[%emt 0:00:00]} 18. Rxh7+ {[%emt 0:00:00]} Rxh7 {[%emt 0:00:00]} 19. Qxg6 {[%emt 0:00:00]} Rh1 {[%emt 0:00:00]} 20. Nf3 {[%emt 0:00:00]} Ba6 {[%emt 0:00:00]} 21. Be2 {[%emt 0:00:00]} Rxd1+ {[%emt 0:00:00]} 22. Bxd1 {[%emt 0:00:00]} Qb4 {[%emt 0:00:00]} 23. Qg7+ {[%emt 0:00:00]} Ke8 {[%emt 0:00:00]} 24. a3 {[%emt 0:00:00]} Qc4 {[%emt 0:00:00]} 25. Nd2 {[%emt 0:01:05]} Qa4 {[%emt 0:00:00]} 26. Bh5+ {[%emt 0:00:07]} Kd8 {[%emt 0:00:00]} 27. Qf8+ {[%emt 0:00:06]} Kc7 {[%emt 0:00:00]} 28. Qxc5 {[%emt 0:00:12]} Qa5 {[%emt 0:00:00]} 29. Nb3 {[%emt 0:01:41]} Qe1+ {[%emt 0:00:00]} 30. Ka2 {[%emt 0:00:05]} 1-0